Cogmind - Beta 14 *** ADVENTURER MODE // 2024.08.28 @ 01:06:29 Player: Fly StompChoppa Result: Destroyed by Y-54 Guardian with Flak Gun Performance ------------- Evolutions (1) 500 Regions Visited (5) 1000 Robots Destroyed (37) 185 Value Destroyed (872) 872 Prototype IDs (0) 0 Alien Tech Used (0) 0 Bonus (0) 0 TOTAL SCORE: 2557 Bonus ------- None Cogmind --------- Core Integrity 0/400 Matter 300/300 Energy 100/100 System Corruption 0% Temperature Cool (12) Movement Core (50) Location -6/Proximity Caves Parts ------- > --- POWER (1) -------- (None) > --- PROPULSION (3) --- (None) > --- UTILITY (3) ------ Visual Processing Unit Advanced Target Analyzer Advanced Target Analyzer > --- WEAPON (2) ------- CR-A16's Pointy Stick > --- INVENTORY (5) ---- Light Armor Plating Hardened Medium Armor Plating Shotgun Slug Cannon Dirty Bomb Trap Peak State ------------ > --- POWER ------------ Light Ion Engine > --- PROPULSION ------- Flight Unit VTOL Module > --- UTILITY ---------- Visual Processing Unit Advanced Target Analyzer Advanced Target Analyzer > --- WEAPON ----------- Shotgun CR-A16's Pointy Stick > --- INVENTORY -------- Storm Laser Slug Cannon [Rating: 28] Favorites ----------- Power Light Ion Engine Engine Light Ion Engine Propulsion Flight Unit Wheel Wheel Hover Unit Hover Unit Flight Unit Flight Unit Utility Improved Targeting Computer Storage Small Storage Unit Processor Improved Targeting Computer Protection Light Armor Plating Weapon EM Shotgun Energy Gun EM Shotgun Ballistic Gun Shotgun Ballistic Cannon Slug Cannon Piercing Weapon CR-A16's Pointy Stick Build | -11 -10 -9 -9 -7 -6 ------- Run | Yrd Mat Mat Min Zio Pro Slots Evolved 2 | . . 2 . . . Power . | . . . . . . Propulsion 1 | . . 1 . . . Utility 1 | . . 1 . . . Weapon . | . . . . . . Parts Attached 40 | 6 12 16 . 3 3 Power 5 | 1 2 2 . . . Engine 5 | 1 2 2 . . . Core . | . . . . . . Reactor . | . . . . . . Propulsion 9 | 2 3 4 . . . Treads . | . . . . . . Leg . | . . . . . . Wheel 2 | 2 . . . . . Hover 2 | . 1 1 . . . Flight 5 | . 2 3 . . . Utility 8 | 1 1 4 . 2 . Device . | . . . . . . Storage 1 | 1 . . . . . Processor 6 | . . 4 . 2 . Hackware . | . . . . . . Protection 1 | . 1 . . . . Artifact . | . . . . . . Weapon 18 | 2 6 6 . 1 3 Energy Gun 8 | 1 5 2 . . . Energy Cannon . | . . . . . . Ballistic Gun 7 | 1 1 4 . . 1 Ballistic Cannon 1 | . . . . . 1 Launcher . | . . . . . . Special Weapon . | . . . . . . Impact Weapon . | . . . . . . Slashing Weapon . | . . . . . . Piercing Weapon 2 | . . . . 1 1 Special Melee Weapon . | . . . . . . Unidentified Prototypes . | . . . . . . Parts Lost 12 | . 5 4 . . 3 Power 2 | . 1 . . . 1 Propulsion 5 | . 1 2 . . 2 Utility . | . . . . . . Weapon 5 | . 3 2 . . . Highest Loss Streak 4 | . 2 4 . . 3 To Critical Strikes 1 | . 1 . . . . Average Slot Usage (%) 71 | . 49 72 77 87 82 Engine 11 | . 11 10 11 11 10 Hover 5 | . 6 12 . . . Flight 14 | . 10 6 22 22 21 Processor 21 | . . 26 33 33 33 Energy Gun 7 | . 14 11 . . . Ballistic Gun 5 | . 1 3 11 11 8 Piercing Weapon 4 | . . . . 10 9 Peak Build Rating 28 | 5 7 13 12 28 26 Average Rating 13 | 2 4 10 12 20 25 On Entrance 9 | . 4 4 12 12 26 Naked Turns . | . . . . . . Heaviest Build 11 | 8 11 11 6 9 9 Greatest Support 12 | 10 10 12 8 8 8 Greatest Overweight (x) 1 | . 1 1 . 1 1 Average Overweight (x) . | . . . . . . Largest Inventory Capacity 8 | 8 5 5 5 5 5 Average Capacity 5 | 5 5 5 5 5 5 Most Carried 5 | 2 3 4 3 5 5 Average Carried 2 | . 1 2 3 3 3 Final Capacity 5 | 5 5 5 5 5 5 Final Carried 5 | . 1 3 3 3 5 Class Distribution -------------------- 100% | Mutant Dominant Class ---------------- Mutant | -10/Materials Mutant | -9/Materials Mutant | -9/Mines Mutant | -7/Zion Mutant | -6/Proximity Caves Resources | -11 -10 -9 -9 -7 -6 ----------- Run | Yrd Mat Mat Min Zio Pro Matter Collected 663 | . 328 241 . 40 54 Remotely . | . . . . . . Salvage Created 1160 | . 467 613 . . 80 Parts 92 | . 45 43 . . 4 Haulers Intercepted . | . . . . . . Recyclers Shooed . | . . . . . . Parts Field Recycled . | . . . . . . Retrieved Matter . | . . . . . . Parts Self-Destructed 4 | . . . . . 4 Prevented . | . . . . . . Kills | -11 -10 -9 -9 -7 -6 ------- Run | Yrd Mat Mat Min Zio Pro Combat Hostiles Destroyed 31 | . 15 15 . . 1 Melee 2 | . 1 . . . 1 Guns 26 | . 13 13 . . . AOE 2 | . 1 1 . . . Classes Destroyed 6 | . 4 2 . . . Worker 1 | . 1 . . . . Operator 1 | . . 1 . . . Watcher 4 | . 3 1 . . . Swarmer 14 | . 9 4 . . 1 Grunt 14 | . 6 8 . . . Sentry 3 | . . 3 . . . Best Kill Streak 4 | . 3 4 . . 1 Combat Bots Only 4 | . 3 4 . . 1 Max Kills in Single Turn 2 | . 2 2 . . 1 Gunslinging . | . . . . . . Exploded 1 | . 1 1 . . . Melee 1 | . 1 . . . 1 Uniques/NPCs Destroyed . | . . . . . . Combat | -11 -10 -9 -9 -7 -6 -------- Run | Yrd Mat Mat Min Zio Pro Hostile Shots Fired 211 | . 44 56 . . 111 Missed 67 | . 12 17 . . 38 Damage Taken 1226 | . 379 398 . . 449 Core 471 | . 69 128 . . 274 Absorbed by Shields . | . . . . . . Ignored by Resistances 368 | . 107 118 . . 143 Core Remaining (%) 86 | 100 72 . . . . Volleys Fired 66 | . 29 36 . . 1 Largest 2 | . 2 2 . . 1 Hottest 90 | . 90 90 . . 23 Shots Fired 85 | . 35 49 . . 1 Gun 85 | . 35 49 . . 1 Cannon . | . . . . . . Launcher . | . . . . . . Special . | . . . . . . Kinetic 18 | . 3 14 . . 1 Thermal . | . . . . . . Explosive . | . . . . . . Electromagnetic 67 | . 32 35 . . . Robot Hit Streak 31 | . 31 21 . . 9 Robot Miss Streak 3 | . 3 2 . . . Penetration Max . | . . . . . . Secondary Targets 1 | . . 1 . . . Max Gunslinging Chain 1 | . . 1 . . . Shots Hit Robots 88 | . 31 48 . . 9 Core Hits 64 | . 30 31 . . 3 Critical Kills . | . . . . . . Critical Parts Destroyed . | . . . . . . Critical Strikes 1 | . . . . . 1 Impale 1 | . . . . . 1 Melee Attacks 10 | . . . . . 10 Impact . | . . . . . . Slashing . | . . . . . . Piercing 10 | . . . . . 10 Sneak Attacks . | . . . . . . Combat Hostiles . | . . . . . . Follow-up Attacks . | . . . . . . Damage Inflicted 1829 | . 647 848 . . 334 Guns 1269 | . 488 759 . . 22 Cannons . | . . . . . . Explosions 219 | . 130 89 . . . Melee 312 | . . . . . 312 Ramming 29 | . 29 . . . . Kinetic 248 | . 25 201 . . 22 Thermal 219 | . 130 89 . . . Explosive . | . . . . . . Electromagnetic 1021 | . 463 558 . . . Impact . | . . . . . . Slashing . | . . . . . . Piercing 312 | . . . . . 312 Highest Corruption 3 | . 3 . . . . Average Corruption 2 | . 2 . . . . Corruption Purged . | . . . . . . Corruption Blocked . | . . . . . . Effects 19 | . 19 . . . . Message Errors 5 | . 5 . . . . Matter Fused 4 | . 4 . . . . Heat Flow Errors 4 | . 4 . . . . Energy Discharges 1 | . 1 . . . . Parts Fused 1 | . 1 . . . . Data Loss (minor) 2 | . 2 . . . . Data Loss (major) 2 | . 2 . . . . Overload Shots . | . . . . . . Overflow Damage 15 | . 15 . . . . Projectiles . | . . . . . . Explosions 15 | . 15 . . . . Melee . | . . . . . . Knockbacks . | . . . . . . Impact . | . . . . . . Kinetic . | . . . . . . Secondary . | . . . . . . Self-Inflicted Damage 69 | . 69 . . . . Shots 2 | . 2 . . . . Rammed 13 | . 13 . . . . Targets Rammed 13 | . 13 . . . . Kicked . | . . . . . . Crushed . | . . . . . . Highest Temperature 312 | . 161 312 . . . Average Temperature 73 | . 42 112 . . . Received Heat Transfer 456 | . 54 240 . . 162 Effects 2 | . . 2 . . . Energy Bleed 1 | . . 1 . . . Matter Decay 1 | . . 1 . . . Siege Activations . | . . . . . . Robots Corrupted 1 | . . 1 . . . Combat Hostiles 1 | . . 1 . . . Parts Fried 3 | . 2 1 . . . Impact Corruptions . | . . . . . . Robots Melted . | . . . . . . Combat Hostiles . | . . . . . . Parts Melted 1 | . 1 . . . . Heat Transferred 200 | . 150 50 . . . Parts Sabotaged . | . . . . . . Parts Stolen . | . . . . . . Parts Stripped . | . . . . . . Power Chain Reactions 4 | . 2 2 . . . Alert | -11 -10 -9 -9 -7 -6 ------- Run | Yrd Mat Mat Min Zio Pro Peak Influence 378 | . 378 309 64 . . Initial 64 | . . 28 64 . . Average 166 | . 176 171 64 . . Maximum Alert Level 1 | . 1 1 . . . Low Security (%) 60 | 100 57 57 100 . . Level 1 39 | . 42 42 . . . Level 2 . | . . . . . . Level 3 . | . . . . . . Level 4 . | . . . . . . Level 5 . | . . . . . . High Security . | . . . . . . Max Security . | . . . . . . Squads Dispatched 5 | . 2 3 . . . Investigation 4 | . 2 2 . . . Extermination . | . . . . . . Reinforcement 1 | . . 1 . . . Assault . | . . . . . . Garrison . | . . . . . . Intercept . | . . . . . . Searches Triggered . | . . . . . . Construction Impeded . | . . . . . . Haulers Reinforced . | . . . . . . Active Scanning Responses . | . . . . . . Cargo Convoy Interrupts . | . . . . . . Stealth | -11 -10 -9 -9 -7 -6 --------- Run | Yrd Mat Mat Min Zio Pro Distress Signals . | . . . . . . Communications Jammed . | . . . . . . Distress Signals . | . . . . . . Times Spotted 51 | . 23 23 . . 5 Peak Tracking Total 5 | . 4 5 . . 3 Tactical Retreats 13 | . 6 5 . . 2 Traps | -11 -10 -9 -9 -7 -6 ------- Run | Yrd Mat Mat Min Zio Pro Traps Triggered 5 | . 2 3 . . . Indirectly . | . . . . . . Trap Hack Attempts . | . . . . . . Triggered . | . . . . . . Disarmed . | . . . . . . Reprogrammed 3 | . 3 . . . . Reused 1 | . 1 . . . . Traps Extracted . | . . . . . . Installed . | . . . . . . Triggered 2 | . 1 1 . . . Most Traps Carried 1 | . . . . . 1 Machines | -11 -10 -9 -9 -7 -6 ---------- Run | Yrd Mat Mat Min Zio Pro Machines Disabled 1 | . . 1 . . . Max in Single Turn 1 | . . 1 . . . Machines Repaired . | . . . . . . Machines Dismantled . | . . . . . . Machines Sabotaged . | . . . . . . Overloaded Fab Kills . | . . . . . . Hacking | -11 -10 -9 -9 -7 -6 --------- Run | Yrd Mat Mat Min Zio Pro Machines Accessed 5 | . 2 2 1 . . Terminals 5 | . 2 2 1 . . Fabricators . | . . . . . . Repair Stations . | . . . . . . Recycling Units . | . . . . . . Scanalyzers . | . . . . . . Garrison Access . | . . . . . . Total Hacks 19 | . 10 5 4 . . Successful 13 | . 8 3 2 . . Failed 6 | . 2 2 2 . . Catastrophic . | . . . . . . Database Lockouts . | . . . . . . Manual . | . . . . . . Terminals 19 | . 10 5 4 . . Fabricators . | . . . . . . Repair Stations . | . . . . . . Recycling Units . | . . . . . . Scanalyzers . | . . . . . . Garrison Access . | . . . . . . Terminal Hacks 13 | . 8 3 2 . . Record 6 | . 4 . 2 . . Alert Level 1 | . 1 . . . . Unreport Threat 1 | . . 1 . . . Reprogram Traps 1 | . 1 . . . . Dispatch Records 1 | . . 1 . . . Surveillance Status 1 | . . 1 . . . Assault Status 1 | . 1 . . . . Hauler Manifests 1 | . 1 . . . . Fabricator Hacks . | . . . . . . Repair Station Hacks . | . . . . . . Recycling Unit Hacks . | . . . . . . Scanalyzer . | . . . . . . Garrison Access Hacks . | . . . . . . Unauthorized Hacks . | . . . . . . Terminals . | . . . . . . Fabricators . | . . . . . . Repair Stations . | . . . . . . Recycling Units . | . . . . . . Scanalyzers . | . . . . . . Garrison Access . | . . . . . . Data Cores Recovered . | . . . . . . Used . | . . . . . . Hacking Detections 3 | . 1 1 1 . . Full Trace Events 2 | . 1 . 1 . . Feedback Events 1 | . 1 . . . . Corruption 1 | . 1 . . . . Feedback Blocked . | . . . . . . Robot Schematics Acquired . | . . . . . . Robots Built . | . . . . . . Authchips . | . . . . . . Time . | . . . . . . Total Robot Build Rating . | . . . . . . Part Schematics Acquired . | . . . . . . Parts Built . | . . . . . . Authchips . | . . . . . . Time . | . . . . . . Total Part Build Rating . | . . . . . . Parts Repaired . | . . . . . . Time . | . . . . . . Parts Recycled . | . . . . . . Recycled Matter . | . . . . . . Retrieved Matter . | . . . . . . Retrieved Components . | . . . . . . Parts Scanalyzed . | . . . . . . Part Schematics Acquired . | . . . . . . Parts Damaged . | . . . . . . Bothacking | -11 -10 -9 -9 -7 -6 ------------ Run | Yrd Mat Mat Min Zio Pro Used RIF Installer . | . . . . . . Robots Hacked . | . . . . . . Non-combat . | . . . . . . Combat . | . . . . . . Robot Hacks Applied . | . . . . . . Relay Couplers Released . | . . . . . . Fabnet Peak Effective % . | . . . . . . Robots Rewired . | . . . . . . Allies Hacked . | . . . . . . Hacks Repelled . | . . . . . . Allies | -11 -10 -9 -9 -7 -6 -------- Run | Yrd Mat Mat Min Zio Pro Total Allies 2 | . . . 2 . . Largest Group 2 | . . . 2 . . Highest-Rated Group 46 | . . . 46 . . Highest-Rated Ally 31 | . . . 31 . . Total Orders . | . . . . . . Ally Attacks . | . . . . . . Total Damage . | . . . . . . Kills . | . . . . . . Allies Corrupted . | . . . . . . Allies Melted . | . . . . . . Intel | -11 -10 -9 -9 -7 -6 ------- Run | Yrd Mat Mat Min Zio Pro Robot Analysis Total . | . . . . . . Derelict Logs Recovered 3 | . . . 1 1 1 Drone Launches . | . . . . . . Drone Recoveries . | . . . . . . Exploration | -11 -10 -9 -9 -7 -6 ------------- Run | Yrd Mat Mat Min Zio Pro Turns Passed 3312 | 42 973 774 70 1003 450 Spaces Moved 3684 | 39 1066 882 186 893 618 Core 15 | 7 . 7 . . 1 Treads . | . . . . . . Legs . | . . . . . . Wheels 193 | 32 161 . . . . Hover 1078 | . 594 484 . . . Flight 2398 | . 311 391 186 893 617 Fastest Speed 34 | 50 37 34 34 34 34 Average Speed 71 | 74 69 52 34 104 64 Slowest Speed 120 | 80 120 120 34 114 120 Overloaded Moves . | . . . . . . Propulsion Burnouts . | . . . . . . Robots Hopped 3 | . . 2 1 . . Cave-ins Triggered . | . . . . . . Exploration Rate (%) 59 | 3 98 55 49 78 71 Regions Visited 5 Branch Regions 3 Pre-discovered Areas 2 | . . . 1 1 . Known Exits Taken . | . . . . . . Unknown Exits Taken 5 | 1 1 1 1 1 . Scrap Searched 5 | . . . . 2 3 Spaces Dug . | . . . . . . Terrain Destroyed 4 | . 4 . . . . Melee . | . . . . . . Projectile . | . . . . . . AOE 4 | . 4 . . . . Terrain Rammed . | . . . . . . Walls Destroyed . | . . . . . . Machines Disabled . | . . . . . . Actions | -11 -10 -9 -9 -7 -6 --------- Run | Yrd Mat Mat Min Zio Pro Total 4273 | 52 1269 1145 191 965 651 Wait 398 | . 131 192 7 55 13 Move 3673 | 38 1065 877 183 892 618 Hop 3 | . . 2 1 . . Pick Up 45 | 6 11 18 . 8 2 Fast Attach . | . . . . . . Attach 38 | 6 12 14 . 3 3 Detach 5 | . 2 . . . 3 Swap 2 | . . 2 . . . Drop 20 | 2 6 4 . 7 1 Fire 66 | . 29 36 . . 1 Melee 10 | . . . . . 10 Ram 13 | . 13 . . . . Kick . | . . . . . . Crush . | . . . . . . Escape Stasis . | . . . . . . Rewire . | . . . . . . Trap . | . . . . . . Miscellaneous . | . . . . . . Route ------- -11/Scrapyard -10/Materials (discovered 4 exits: *Mat x3 / [*Min]) -9/Materials -9/Mines -7/Zion -6/Proximity Caves History --------- Turn | Location | Event 16 | -11/Scrapyard | Discovered new exit (range 16) 43 | -11/Scrapyard | Entered Materials 154 | -10/Materials | Discovered new exit (range 3) 312 | -10/Materials | Build established: Mutant 371 | -10/Materials | Discovered new exit (range 5) 619 | -10/Materials | Discovered new exit (range 14) 673 | -10/Materials | Discovered new exit (range 16) 1016 | -10/Materials | Entered another Materials area 1016 | -9/Materials | Evolved 2 slots: Propulsion x1, Utility x1 1269 | -9/Materials | Discovered new exit (range 15) 1570 | -9/Materials | Lost 4 parts (2n2w) 1790 | -9/Materials | Entered Mines 1801 | -9/Mines | Learned location of Zion (-7) 1810 | -9/Mines | Assembled infested the area 1819 | -9/Mines | Met a Derelict bent on vengeance 1857 | -9/Mines | A Derelict revealed a hidden shortcut to a safe place 1860 | -9/Mines | Entered Zion 1934 | -7/Zion | Learned location of Quarantine (-2) 1943 | -7/Zion | Found CR-A16's Pointy Stick 2069 | -7/Zion | Acquired unknown access codes intercepted by a Zionite 2219 | -7/Zion | Learned location of 1 exit from Factory 2278 | -7/Zion | Given the Hacking Drone Bay 2430 | -7/Zion | Discovered new exit (range 16) 2721 | -7/Zion | Found Prototype Energy Gun 2863 | -7/Zion | Entered Proximity Caves 3049 | -6/Proximity Caves | Spotted B-75 Beast 3284 | -6/Proximity Caves | Attracted the attention of an 0b10 checkpoint 3297 | -6/Proximity Caves | Core integrity fell below 50% 3307 | -6/Proximity Caves | Core integrity fell below 20% 3313 | -6/Proximity Caves | Destroyed by Y-54 Guardian with Flak Gun Last Messages --------------- 03219_ Acquired Shotgun. 03227_ Searching scrap... 03227_ Found Plasma Rifle. 03227_ Found Energy Filter. 03227_ Found Mak. Light Armor Plating. 03227_ Found Imp. Terrain Scanner. 03227_ Found 51 Matter. 03250_ Sneak attack on G-50 Soldier. 03250_ G-50 Soldier destroyed. 03253_ Acquired 10 matter. 03275_ S-27 Virus destroyed. 03283_ VTOL Module fries itself beyond repair. 03284_ Y-54 Guardian: "INTERCEPTING UNREGISTERED DERELICT." 03292_ VTOL Module destroyed. 03296_ Flight Unit destroyed. 03296_ Lgt. Ion Engine destroyed. 03302_ G-50 Soldier destroyed. 03311_ Y-54 Guardian suffers critical hit (Impale). Map ----- +----------------------------------------------------+ | ???? #?????????????????????????????????????????? | | #??? #?????????????????????????????????????????? | | #??# #?????????????????????????????????????????? | | ##?# #?????????????????????????????????????????? | | #?# #?????????????????????????????????????????? | | #?# #?????????????????????????????????????????? | | ### ########??????????????????????????????????? | | ## #??????????????????????????????????? | | ##????????? ???????????????????? | | #????????? ??????????????????? | | #?????????? ??????????????????? | | # # ## ##?????????? #??????????????????? | | " "# ##?????????? #??????????????????? | | "# #?????????? ##??##?????????????? | | T #??##?????? #? ##????????????? | | # ### #?????? ## #????????????? | | %" # #??????? #????????????? | | ! "# #??????? ?????????????? | | # #??????? ? #???????????? | | "# #??????? ? #???????????? | | "# ## ##??????? ?? #????????????? | | #+# ## ### #??####?? ? #?????????????? | | ## #?## ##?# #? ##????????????? | | ## ### ###% # ##???????????? | | ########## ## #???????????? | | ????????# @Y # #???????????? | | ????????# #### #???????????? | | ????????# #??? #???????????? | | ????????# #???? #???????????? | | ?????# ## #?????? #???????????? | | ????# ## #### #??????? ##???????????? | | ????# ##?#### #??## ##????????##????????????? | | ????#####??????####???####???????????????????????? | | ?????????????????????????????????????????????????? | | ?????????????????????????????????????????????????? | | ?????????????????????????????????????????????????? | | ?????????????????????????????????????????????????? | | ?????????????????????????????????????????????????? | | ?????????????????????????????????????????????????? | | ?????????????????????????????????????????????????? | | ?????????????????????????????????????????????????? | | ?????????????????????????????????????????????????? | | ?????????????????????????????????????????????????? | | ?????????????????????????????????????????????????? | | ?????????????????????????????????????????????????? | | ?????????????????????????????????????????????????? | | ?????????????????????????????????????????????????? | | ?????????????????????????????????????????????????? | | ?????????????????????????????????????????????????? | | | +----------------------------------------------------+ Best States ------------- Heat Dissipation 28 Energy Generation 10 Energy Capacity 250 Matter Stores 300 Matter Capacity 300 Sight Range 18 Terrain Scan Density 10 Armor Coverage 150 Resistance: KI 20 Resistance: TH 20 Resistance: EX 20 Resistance: EM 20 Resistance: I 20 Resistance: S 20 Resistance: P 20 Evasion (%) 63 Targeting Accuracy 12 Target Analysis 12 Offensive Hacking 10 Item Schematics ----------------- None Robot Schematics ------------------ None Fabricated ------------ Nothing Alien Tech Used ----------------- None Achievements -------------- None Challenges ------------ None Game ------ Seed HardenedLinearScrap Manual? 0 Play Time 00:50:07 Cumulative 21.5 hours Start 2024.08.28 @ 00:10:18 End 2024.08.28 @ 01:06:29 Sessions 1 Manual Loads 0 Difficulty Adventurer Special Mode None Game No. 25 Rogue 0 Adventurer 25 Explorer 0 Win Type - Total 0 Types 0/0/0/0/0/0/0/0/0 Lore% 5 Gallery% 18 Achievement% 16 Wizard Run 0 Options --------- Layout 1 ASCII 0 Keyboard 0 Movement Numpad Keybinds 0 Fullscreen 1 Font 24/Smallcaps Map View 50x35 Zoom Use 4% Tactical HUD 1 Map Filters NONE Filters NONE Steam 1 RUN: fcdbce1e-7965-4f06-88d8-c9dee43b023f